Cogmind - Beta 14 --- EXPLORER MODE // 2025.04.26 @ 23:53:51 Player: Niltras Result: Self-destructed Performance ------------- Evolutions (1) 500 Regions Visited (2) 400 Robots Destroyed (29) 145 Value Destroyed (774) 774 Prototype IDs (1) 20 Alien Tech Used (0) 0 Bonus (0) 0 TOTAL SCORE: 1839 Bonus ------- None Cogmind --------- Core Integrity 178/400 Matter 267/300 Energy 100/100 System Corruption 0% Temperature Cool (15) Movement Core (50) Location -9/Materials Parts ------- > --- POWER (1) -------- (None) > --- PROPULSION (3) --- (None) > --- UTILITY (4) ------ Signal Interpreter Transport Network Coupler > --- WEAPON (2) ------- Flail > --- INVENTORY (5) ---- Improved Heat Sink Datajack Peak State ------------ > --- POWER ------------ Light Nuclear Core > --- PROPULSION ------- Aluminum Leg Improved Aluminum Leg Improved Aluminum Leg > --- UTILITY ---------- Sensor Array Signal Interpreter > --- WEAPON ----------- Assault Rifle Light Assault Rifle > --- INVENTORY -------- Light Nuclear Core Aluminum Leg Flight Unit Improved Heat Sink [Rating: 12] Favorites ----------- Power Light Nuclear Core Engine Light Ion Engine Power Core Light Nuclear Core Propulsion Aluminum Leg Leg Aluminum Leg Flight Unit Flight Unit Utility Signal Interpreter Device Sensor Array Processor Signal Interpreter Weapon Assault Rifle Ballistic Gun Assault Rifle Impact Weapon Flail Build | -11 -10 -9 ------- Run | Yrd Mat Mat Slots Evolved 3 | . 1 2 Power . | . . . Propulsion 1 | . 1 . Utility 2 | . . 2 Weapon . | . . . Parts Attached 20 | 6 4 10 Power 6 | 1 2 3 Engine 3 | 1 1 1 Core 3 | . 1 2 Reactor . | . . . Propulsion 6 | 2 . 4 Treads . | . . . Leg 4 | 2 . 2 Wheel . | . . . Hover . | . . . Flight 2 | . . 2 Utility 4 | 1 2 1 Device 1 | . 1 . Storage . | . . . Processor 3 | 1 1 1 Hackware . | . . . Protection . | . . . Artifact . | . . . Weapon 4 | 2 . 2 Energy Gun . | . . . Energy Cannon . | . . . Ballistic Gun 3 | 2 . 1 Ballistic Cannon . | . . . Launcher . | . . . Special Weapon . | . . . Impact Weapon 1 | . . 1 Slashing Weapon . | . . . Piercing Weapon . | . . . Special Melee Weapon . | . . . Unidentified Prototypes 1 | . . 1 Parts Lost 7 | . . 7 Power 2 | . . 2 Propulsion 2 | . . 2 Utility 1 | . . 1 Weapon 2 | . . 2 Highest Loss Streak 5 | . . 5 To Critical Strikes 1 | . . 1 Average Slot Usage (%) 81 | . 86 72 Engine 2 | . 4 . Core 8 | . 7 8 Leg 23 | . 25 19 Flight 2 | . . 5 Device 9 | . 9 10 Processor 12 | . 14 11 Ballistic Gun 21 | . 25 16 Peak Build Rating 12 | 6 9 12 Average Rating 8 | 4 8 10 On Entrance 5 | . 6 9 Naked Turns . | . . . Heaviest Build 9 | 8 9 9 Greatest Support 36 | 20 20 36 Greatest Overweight (x) 1 | 1 . 1 Average Overweight (x) . | . . . Largest Inventory Capacity 5 | 5 5 5 Average Capacity 5 | 5 5 5 Most Carried 5 | 1 2 5 Average Carried 2 | . 1 3 Final Capacity 5 | 5 5 5 Final Carried 2 | 1 2 2 Class Distribution -------------------- 100% | Hacker-Mutant Dominant Class ---------------- Hacker-Mutant | -10/Materials Hacker-Mutant | -9/Materials Resources | -11 -10 -9 ----------- Run | Yrd Mat Mat Matter Collected 655 | 242 206 207 Remotely . | . . . Salvage Created 1108 | . 585 523 Parts 68 | . 33 35 Haulers Intercepted 1 | . . 1 Recyclers Shooed 1 | . 1 . Parts Field Recycled . | . . . Retrieved Matter . | . . . Parts Self-Destructed . | . . . Prevented . | . . . Kills | -11 -10 -9 ------- Run | Yrd Mat Mat Combat Hostiles Destroyed 22 | . 9 13 Melee 1 | . . 1 Guns 21 | . 9 12 Classes Destroyed 8 | . 3 5 Worker 1 | . . 1 Hauler 1 | . . 1 Recycler 2 | . 2 . Watcher 3 | . 2 1 Swarmer 6 | . . 6 Grunt 10 | . 9 1 Duelist 1 | . . 1 Sentry 5 | . . 5 Best Kill Streak 5 | . 3 5 Combat Bots Only 5 | . 2 5 Max Kills in Single Turn 1 | . 1 1 Gunslinging . | . . . Exploded . | . . . Melee 1 | . . 1 Uniques/NPCs Destroyed . | . . . Combat | -11 -10 -9 -------- Run | Yrd Mat Mat Hostile Shots Fired 136 | . 40 96 Missed 40 | . 14 26 Damage Taken 817 | . 200 617 Core 260 | . 38 222 Absorbed by Shields . | . . . Ignored by Resistances 510 | . 128 382 Core Remaining (%) 92 | 100 84 . Volleys Fired 89 | . 37 52 Largest 2 | . 2 2 Hottest 40 | . 40 40 Shots Fired 149 | . 74 75 Gun 149 | . 74 75 Cannon . | . . . Launcher . | . . . Special . | . . . Kinetic 149 | . 74 75 Thermal . | . . . Explosive . | . . . Electromagnetic . | . . . Robot Hit Streak 22 | . 22 17 Robot Miss Streak 2 | . 2 2 Penetration Max . | . . . Secondary Targets 4 | . 3 1 Max Gunslinging Chain 1 | . 1 1 Shots Hit Robots 123 | . 58 65 Core Hits 52 | . 26 26 Critical Kills . | . . . Critical Parts Destroyed . | . . . Critical Strikes . | . . . Melee Attacks 7 | . . 7 Impact 7 | . . 7 Slashing . | . . . Piercing . | . . . Sneak Attacks . | . . . Combat Hostiles . | . . . Follow-up Attacks . | . . . Damage Inflicted 1459 | . 615 844 Guns 1284 | . 615 669 Cannons . | . . . Explosions . | . . . Melee 175 | . . 175 Ramming . | . . . Kinetic 1284 | . 615 669 Thermal . | . . . Explosive . | . . . Electromagnetic . | . . . Impact 175 | . . 175 Slashing . | . . . Piercing . | . . . Highest Corruption . | . . . Average Corruption . | . . . Corruption Purged . | . . . Corruption Blocked . | . . . Overload Shots . | . . . Overflow Damage 41 | . . 41 Projectiles . | . . . Explosions . | . . . Melee 41 | . . 41 Knockbacks . | . . . Impact . | . . . Kinetic . | . . . Secondary . | . . . Self-Inflicted Damage . | . . . Shots . | . . . Rammed . | . . . Targets Rammed . | . . . Kicked . | . . . Crushed . | . . . Highest Temperature 23 | . 23 18 Average Temperature 7 | . 7 7 Received Heat Transfer 456 | . 180 276 Siege Activations . | . . . Robots Corrupted . | . . . Combat Hostiles . | . . . Parts Fried . | . . . Impact Corruptions 2 | . . 2 Robots Melted . | . . . Combat Hostiles . | . . . Parts Melted . | . . . Heat Transferred . | . . . Parts Sabotaged . | . . . Parts Stolen . | . . . Parts Stripped . | . . . Power Chain Reactions . | . . . Alert | -11 -10 -9 ------- Run | Yrd Mat Mat Peak Influence 305 | . 159 305 Initial . | . . . Average 53 | . 32 95 Maximum Alert Level 1 | . . 1 Low Security (%) 97 | 100 100 93 Level 1 2 | . . 6 Level 2 . | . . . Level 3 . | . . . Level 4 . | . . . Level 5 . | . . . High Security . | . . . Max Security . | . . . Squads Dispatched 2 | . . 2 Investigation . | . . . Extermination . | . . . Reinforcement 2 | . . 2 Assault . | . . . Garrison . | . . . Intercept . | . . . Searches Triggered . | . . . Construction Impeded . | . . . Haulers Reinforced . | . . . Active Scanning Responses . | . . . Cargo Convoy Interrupts . | . . . Stealth | -11 -10 -9 --------- Run | Yrd Mat Mat Distress Signals 4 | . 1 3 Communications Jammed . | . . . Distress Signals . | . . . Times Spotted 39 | . 15 24 Peak Tracking Total 6 | . 3 6 Tactical Retreats . | . . . Traps | -11 -10 -9 ------- Run | Yrd Mat Mat Traps Triggered . | . . . Indirectly . | . . . Trap Hack Attempts . | . . . Triggered . | . . . Disarmed . | . . . Reprogrammed . | . . . Reused . | . . . Traps Extracted . | . . . Installed . | . . . Triggered . | . . . Machines | -11 -10 -9 ---------- Run | Yrd Mat Mat Machines Disabled . | . . . Max in Single Turn . | . . . Machines Repaired . | . . . Machines Dismantled . | . . . Machines Sabotaged . | . . . Overloaded Fab Kills . | . . . Hacking | -11 -10 -9 --------- Run | Yrd Mat Mat Machines Accessed 7 | . 5 2 Terminals 6 | . 5 1 Fabricators . | . . . Repair Stations . | . . . Recycling Units . | . . . Scanalyzers 1 | . . 1 Garrison Access . | . . . Total Hacks 14 | . 10 4 Successful 7 | . 4 3 Failed 7 | . 6 1 Catastrophic . | . . . Database Lockouts . | . . . Manual 1 | . 1 . Terminals 12 | . 10 2 Fabricators . | . . . Repair Stations . | . . . Recycling Units . | . . . Scanalyzers 2 | . . 2 Garrison Access . | . . . Terminal Hacks 5 | . 4 1 Unreport Threat 1 | . 1 . Locate Traps 1 | . 1 . Dispatch Records 1 | . . 1 Patrol Status 1 | . 1 . Transport Status 1 | . 1 . Fabricator Hacks . | . . . Repair Station Hacks . | . . . Recycling Unit Hacks . | . . . Scanalyzer 2 | . . 2 Insert Component 1 | . . 1 Analyze 1 | . . 1 Garrison Access Hacks . | . . . Unauthorized Hacks . | . . . Terminals . | . . . Fabricators . | . . . Repair Stations . | . . . Recycling Units . | . . . Scanalyzers . | . . . Garrison Access . | . . . Data Cores Recovered . | . . . Used . | . . . Hacking Detections 4 | . 3 1 Full Trace Events . | . . . Feedback Events . | . . . Feedback Blocked . | . . . Robot Schematics Acquired . | . . . Robots Built . | . . . Authchips . | . . . Time . | . . . Total Robot Build Rating . | . . . Part Schematics Acquired . | . . . Parts Built . | . . . Authchips . | . . . Time . | . . . Total Part Build Rating . | . . . Parts Repaired . | . . . Time . | . . . Parts Recycled . | . . . Recycled Matter . | . . . Retrieved Matter . | . . . Retrieved Components . | . . . Parts Scanalyzed 1 | . . 1 Part Schematics Acquired . | . . . Parts Damaged . | . . . Bothacking | -11 -10 -9 ------------ Run | Yrd Mat Mat Used RIF Installer . | . . . Robots Hacked . | . . . Non-combat . | . . . Combat . | . . . Robot Hacks Applied . | . . . Relay Couplers Released . | . . . Fabnet Peak Effective % . | . . . Robots Rewired . | . . . Allies Hacked . | . . . Hacks Repelled . | . . . Allies | -11 -10 -9 -------- Run | Yrd Mat Mat Total Allies . | . . . Largest Group . | . . . Highest-Rated Group . | . . . Highest-Rated Ally . | . . . Total Orders . | . . . Ally Attacks . | . . . Total Damage . | . . . Kills . | . . . Allies Corrupted . | . . . Allies Melted . | . . . Intel | -11 -10 -9 ------- Run | Yrd Mat Mat Robot Analysis Total . | . . . Derelict Logs Recovered . | . . . Drone Launches . | . . . Drone Recoveries . | . . . Exploration | -11 -10 -9 ------------- Run | Yrd Mat Mat Turns Passed 1658 | 66 1014 578 Spaces Moved 1132 | 54 712 366 Core 14 | 14 . . Treads . | . . . Legs 993 | 40 712 241 Wheels . | . . . Hover . | . . . Flight 125 | . . 125 Fastest Speed 37 | 50 120 37 Average Speed 110 | 105 120 92 Slowest Speed 120 | 120 120 120 Overloaded Moves . | . . . Propulsion Burnouts . | . . . Robots Hopped 1 | . . 1 Cave-ins Triggered . | . . . Exploration Rate (%) 49 | 3 98 48 Regions Visited 2 Branch Regions . Pre-discovered Areas . | . . . Known Exits Taken 2 | 1 1 . Unknown Exits Taken . | . . . Scrap Searched . | . . . Spaces Dug . | . . . Terrain Destroyed . | . . . Melee . | . . . Projectile . | . . . AOE . | . . . Terrain Rammed . | . . . Walls Destroyed . | . . . Machines Disabled . | . . . Actions | -11 -10 -9 --------- Run | Yrd Mat Mat Total 1389 | 60 805 524 Wait 124 | . 45 79 Move 1128 | 53 711 364 Hop 1 | . . 1 Pick Up 8 | 1 3 4 Fast Attach 12 | 6 3 3 Attach 6 | . . 6 Detach 2 | . . 2 Swap 2 | . 1 1 Drop 10 | . 5 5 Fire 89 | . 37 52 Melee 7 | . . 7 Ram . | . . . Kick . | . . . Crush . | . . . Escape Stasis . | . . . Rewire . | . . . Trap . | . . . Miscellaneous . | . . . Route ------- -11/Scrapyard -10/Materials (discovered 4 exits: *Mat x3 / *Min) -9/Materials (discovered 1 exit: *Min) History --------- Turn | Location | Event 15 | -11/Scrapyard | Identified exit to Materials 15 | -11/Scrapyard | Discovered exit to Materials (range 16) 67 | -11/Scrapyard | Entered Materials 67 | -10/Materials | Evolved 1 slot: Propulsion x1 309 | -10/Materials | Build established: Hacker-Mutant 322 | -10/Materials | Identified exit to Materials 322 | -10/Materials | Discovered exit to Materials (range 16) 415 | -10/Materials | Discovered exit to Materials (range 16) 773 | -10/Materials | Identified exit to Mines 773 | -10/Materials | Discovered exit to Mines (range 11) 876 | -10/Materials | Discovered exit to Materials (range 5) 1081 | -10/Materials | Entered another Materials area 1081 | -9/Materials | Evolved 2 slots: Utility x2 1381 | -9/Materials | Identified exit to Mines 1381 | -9/Materials | Discovered exit to Mines (range 5) 1658 | -9/Materials | Core integrity fell below 50% 1659 | -9/Materials | Self-destructed Last Messages --------------- 01633_ Lgt. Nuclear Core destroyed. 01633_ Assault Rifle destroyed. 01635_ K-01 Serf collects debris. 01637_ S-10 Pest destroyed. 01639_ Acquired 22 matter. 01639_ Critical hit (Destroy). 01639_ Lgt. Assault Rifle destroyed. 01643_ Destroyed Flight Unit. 01643_ S-10 Pest system corrupted by crushing effect. 01644_ K-01 Serf collects debris. 01645_ S-10 Pest IFF system glitched. 01650_ K-01 Serf collects debris. 01651_ Destroyed Flight Unit. 01651_ S-10 Pest system corrupted by crushing effect. 01651_ S-10 Pest destroyed. 01653_ Acquired 12 matter. 01657_ Flight Unit destroyed. 01659_ Sensor Array destroyed. Map ----- +----------------------------------------------------+ | | | | | | | ?????????????????????????????????????????????????? | | ?????????????????????????????????????????????????? | | ?????????????????????????????????????????????????? | | ?????????????????????????????????????????????????? | | ?????????????????????????????????????????????????? | | ?????????????????????????????????????????????????? | | ?????????????????????????????????????????????????? | | ############+####????????????????????????????????? | | = | # #????????????????????????????????? | | /# #????????????????????????????????? | | """"" #"" #????????????????????????????????? | | """""""" #"T #????????????????????????????????? | | """ """ #"" #????????????????????????????????? | | # #????????????????????????????????? | | ##+#####??#+#???????????????????????????? | | ###+####+## #??????# #???????????????????????????? | | ## ## #??????# #???????????????????????????? | | ## ######## ##########??????????????????? | | #% ## x ! ## #??????????????????? | | #! ## #####[*= ##"S ][]#??????????????????? | | # ## #???#%[ ##""" ]]k#??????????????????? | | # ^^ ####???#[* ## ""=]]!##?????????????????? | | # #??????#*! ## g@Y==*%#?????????????????? | | + #??????# ##+##Y####### #???????????? | | # #????### #???????????? | | # ##### ###### #???????????? | | ### [* + # #???????????? | | ### !%## """ # #???????????? | | # !## """ #x """ """ #???????????? | | # ## a """ # """"""""" #???????????? | | # ## xx + x """"" #???????????? | | # ## ! # ?? #???????????? | | # ## # ???? ??????????? | | ###[!= ## "T" # a ?????? ???????????? | | ###/ * ## """ # x ??????????????????? | | =[ =!= ########### a ??????????????????? | | ###% #?????????# ##??????????????????? | | #?# #?????????### ## #???????????????????? | | #?# + ![?????????##? ????????????????????? | | #?####### # ????????? ??????????????????????? | | ####????# #? ?????????????????????????????????? | | +????# #??= ????????????????????????????????? | | #????# #????##????????????????????????????????? | | #????# #??????????????????????????????????????? | | #????# #??????????????????????????????????????? | | #????# #??????????????????????????????????????? | | ###### ######## +???????????????????????? | +----------------------------------------------------+ Best States ------------- Heat Dissipation 28 Energy Generation 14 Energy Capacity 280 Matter Stores 300 Matter Capacity 300 Sight Range 16 Robot Scan Range 14 Terrain Scan Density 10 Resistance: KI 35 Resistance: TH 35 Resistance: EX 35 Resistance: EM 35 Resistance: I 35 Resistance: S 35 Resistance: P 35 Evasion (%) 62 Targeting Accuracy 5 Offensive Hacking 20 Item Schematics ----------------- None Robot Schematics ------------------ None Fabricated ------------ Nothing Alien Tech Used ----------------- None Achievements -------------- None Challenges ------------ None Game ------ Seed NullMolecularAnalyzer Manual? 0 Play Time 00:21:07 Cumulative 80.7 hours Start 2025.04.26 @ 23:33:34 End 2025.04.26 @ 23:53:51 Sessions 1 Manual Loads 0 Difficulty Explorer Special Mode None Game No. 48 Rogue 1 Adventurer 16 Explorer 31 Win Type - Total 3 Types 2/0/1/0/0/0/0/0/0 Lore% 50 Gallery% 46 Achievement% 43 Wizard Run 0 Options --------- Layout 1 ASCII 0 Keyboard 0 Movement Mouse Keybinds 0 Fullscreen 1 Font 20/SmallcapsGlow Map View 50x35 Zoom Use 0% Tactical HUD 1 Map Filters NONE Filters NONE Steam 1 RUN: c4a0ef77-2538-4b8f-b735-f2f94e10d59c